[Event "HUN-ch Rapid 2018"]
[Site "Ajka"]
[Date "2018.07.21"]
[Round "10"]
[White "Csala, Imre"]
[Black "Egresi, Mate"]
[Result "0-1"]
[ECO "D37"]
[WhiteElo "2146"]
[BlackElo "2280"]
[Annotator "NA"]
[PlyCount "120"]
[EventDate "2018.07.20"]
[EventType "swiss"]
[EventCountry "HUN"]
[SourceTitle "playchess.com"]
[Source "ChessBase"]
[SourceQuality "1"]
[TimeControl "1200+5"]

1. d4 {[%emt 0:00:01]} d5 {[%emt 0:00:01]} 2. Nf3 {[%emt 0:00:02]} Nf6 {[%emt 0:00:01]} 3. c4 {[%emt 0:00:01]} e6 {[%emt 0:00:01]} 4. Nc3 {[%emt 0:00:01]} Be7 {[%emt 0:00:00]} 5. Bf4 {[%emt 0:00:01]} O-O {[%emt 0:00:02]} 6. e3 {[%emt 0:00:01]} c5 {[%emt 0:00:01]} 7. dxc5 {[%emt 0:00:06]} Bxc5 {[%emt 0:00:01]} 8. Rc1 {[%emt 0:00:06]} Nc6 {[%emt 0:01:55]} 9. Be2 {[%emt 0:00:03]} d4 {[%emt 0:00:32]} 10. exd4 {[%emt 0:00:02]} Nxd4 {[%emt 0:00:12]} 11. Nxd4 {[%emt 0:00:04]} Bxd4 {[%emt 0:00:22]} 12. O-O {[%emt 0:00:07]} e5 {[%emt 0:00:10]} 13. Bg5 {[%emt 0:00:03]} Be6 {[%emt 0:00:51]} 14. Qb3 {[%emt 0:00:56]} h6 {[%emt 0:02:02]} 15. Bh4 {[%emt 0:00:13]} Qb6 {[%emt 0:01:12]} 16. Nb5 {[%emt 0:00:11]} g5 {[%emt 0:02:08]} 17. Bg3 {[%emt 0:01:19]} Ne4 {[%emt 0:00:10]} 18. Nxd4 {[%emt 0:00:03]} Qxd4 {[%emt 0:00:15]} 19. Rfd1 {[%emt 0:00:14]} Nxg3 {[%emt 0:00:04]} 20. hxg3 {[%emt 0:00:21]} Qb6 {[%emt 0:00:03]} 21. Qc3 {[%emt 0:00:06]} Qc7 {[%emt 0:00:25]} 22. Bf3 {[%emt 0:00:29]} Rad8 {[%emt 0:00:21]} 23. Re1 {[%emt 0:00:06]} f6 {[%emt 0:00:23]} 24. c5 {[%emt 0:00:31]} Rd4 {[%emt 0:00:36]} 25. b3 {[%emt 0:00:06]} Rfd8 {[%emt 0:00:09]} 26. Be2 {[%emt 0:01:49]} Kg7 {[%emt 0:00:12]} 27. Bb5 {[%emt 0:00:12]} Rd2 {[%emt 0:00:35]} 28. Re2 {[%emt 0:00:20]} Rxe2 {[%emt 0:00:15]} 29. Bxe2 {[%emt 0:00:02]} Bd5 {[%emt 0:01:03]} 30. Bf3 {[%emt 0:00:11]} Bxf3 {[%emt 0:00:14]} 31. gxf3 {[%emt 0:00:02]} Qd7 {[%emt 0:00:37]} 32. Kg2 {[%emt 0:00:21]} Qd2 {[%emt 0:00:26]} 33. c6 {[%emt 0:00:20]} Qxc3 {[%emt 0:00:07]} 34. Rxc3 {[%emt 0:00:01]} bxc6 {[%emt 0:00:15]} 35. Rxc6 {[%emt 0:00:02]} Rd7 {[%emt 0:00:01]} 36. g4 {[%emt 0:00:14]} Kf7 {[%emt 0:00:19]} 37. Ra6 {[%emt 0:00:09]} Kg6 {[%emt 0:00:20]} 38. b4 {[%emt 0:00:06]} Rf7 {[%emt 0:00:06]} 39. a4 {[%emt 0:00:05]} h5 {[%emt 0:00:06]} 40. gxh5+ {[%emt 0:00:02]} Kxh5 {[%emt 0:00:02]} 41. b5 {[%emt 0:00:00]} Kg6 {[%emt 0:00:12]} 42. Kg3 {[%emt 0:00:24]} Kf5 {[%emt 0:00:03]} 43. Rc6 {[%emt 0:00:09]} Rd7 {[%emt 0:00:06]} 44. a5 {[%emt 0:01:01]} Rd5 {[%emt 0:00:15]} 45. Rc7 {[%emt 0:00:11]} Rxb5 {[%emt 0:00:03]} 46. Rxa7 {[%emt 0:00:01]} Rb3 {[%emt 0:00:02]} 47. Kg2 {[%emt 0:00:08]} Ra3 {[%emt 0:00:01]} 48. Ra6 {[%emt 0:00:04]} Ra1 {[%emt 0:00:16]} 49. Kh2 {[%emt 0:00:11]} Ra2 {[%emt 0:00:20]} 50. Kg3 {[%emt 0:00:10]} Ra4 {[%emt 0:00:06]} 51. Kg2 {[%emt 0:00:13]} Ra3 {[%emt 0:00:03]} 52. Ra8 {[%emt 0:00:28]} Kf4 {[%emt 0:00:13]} 53. Ra6 {[%emt 0:00:08]} f5 {[%emt 0:00:10]} 54. Rb6 {[%emt 0:00:13]} Rxa5 {[%emt 0:01:01]} 55. Rb4+ {[%emt 0:00:05]} e4 {[%emt 0:00:02]} 56. fxe4 {[%emt 0:00:03]} fxe4 {[%emt 0:00:03]} 57. Rb3 {[%emt 0:00:05]} Ra2 {[%emt 0:00:07]} 58. Rc3 {[%emt 0:00:01]} Rd2 {[%emt 0:00:02]} 59. Rc8 {[%emt 0:00:05]} e3 {[%emt 0:00:14]} 60. Rf8+ {[%emt 0:00:08]} Kg4 0-1

[Event "HUN-ch Rapid 2018"]
[Site "Ajka"]
[Date "2018.07.21"]
[Round "10"]
[White "Miszler, Levente"]
[Black "Martini, Balazs"]
[Result "0-1"]
[ECO "A14"]
[WhiteElo "1809"]
[BlackElo "2295"]
[Annotator "NA"]
[PlyCount "86"]
[EventDate "2018.07.20"]
[EventType "swiss"]
[EventCountry "HUN"]
[SourceTitle "playchess.com"]
[Source "ChessBase"]
[SourceQuality "1"]
[TimeControl "1200+5"]

1. Nf3 {[%emt 0:00:02]} d5 {[%emt 0:00:05]} 2. c4 {[%emt 0:00:02]} e6 {[%emt 0:00:12]} 3. g3 {[%emt 0:00:05]} Nf6 {[%emt 0:00:05]} 4. Bg2 {[%emt 0:00:02]} Be7 {[%emt 0:00:11]} 5. O-O {[%emt 0:00:05]} O-O {[%emt 0:00:02]} 6. cxd5 {[%emt 0:00:02]} exd5 {[%emt 0:00:01]} 7. d4 {[%emt 0:00:02]} c6 {[%emt 0:00:40]} 8. Nc3 {[%emt 0:00:04]} Bf5 {[%emt 0:00:10]} 9. Bf4 {[%emt 0:01:16]} h6 {[%emt 0:00:24]} 10. Qb3 {[%emt 0:01:01]} Qb6 {[%emt 0:00:08]} 11. Qxb6 {[%emt 0:00:38]} axb6 {[%emt 0:00:01]} 12. Ne5 {[%emt 0:01:09]} Nbd7 {[%emt 0:00:20]} 13. Nxd7 {[%emt 0:00:19]} Nxd7 {[%emt 0:00:03]} 14. f3 {[%emt 0:00:37]} Bf6 {[%emt 0:00:15]} 15. Be3 {[%emt 0:00:10]} b5 {[%emt 0:00:15]} 16. a3 {[%emt 0:00:32]} Nb6 {[%emt 0:04:14]} 17. Bf2 {[%emt 0:01:53]} Na4 {[%emt 0:01:14]} 18. Nxa4 {[%emt 0:00:51]} Rxa4 {[%emt 0:00:02]} 19. e4 {[%emt 0:00:25]} Be6 {[%emt 0:00:11]} 20. e5 {[%emt 0:00:50]} Bd8 {[%emt 0:00:14]} 21. Be3 {[%emt 0:00:40]} Bb6 {[%emt 0:00:05]} 22. Rad1 {[%emt 0:00:02]} h5 {[%emt 0:00:19]} 23. f4 {[%emt 0:00:25]} Bf5 {[%emt 0:00:19]} 24. Bf3 {[%emt 0:00:17]} g6 {[%emt 0:00:02]} 25. Kg2 {[%emt 0:00:11]} b4 {[%emt 0:00:12]} 26. axb4 {[%emt 0:01:40]} Rxb4 {[%emt 0:00:01]} 27. Rd2 {[%emt 0:00:03]} Ra8 {[%emt 0:00:30]} 28. h3 {[%emt 0:00:23]} Ra2 {[%emt 0:00:16]} 29. Rff2 {[%emt 0:00:02]} Rb3 {[%emt 0:00:09]} 30. g4 {[%emt 0:02:41]} hxg4 {[%emt 0:00:32]} 31. hxg4 {[%emt 0:00:01]} Bb1 {[%emt 0:00:14]} 32. Rfe2 {[%emt 0:01:12]} Ba5 {[%emt 0:00:35]} 33. Rd1 {[%emt 0:00:26]} Raxb2 {[%emt 0:00:54]} 34. Rxb2 {[%emt 0:00:38]} Rxb2+ {[%emt 0:00:01]} 35. Bf2 {[%emt 0:00:19]} Bc3 {[%emt 0:00:19]} 36. Kg3 {[%emt 0:00:18]} b5 {[%emt 0:00:16]} 37. Rc1 {[%emt 0:00:17]} b4 {[%emt 0:00:06]} 38. Bd1 {[%emt 0:00:25]} Be4 {[%emt 0:01:07]} 39. Ba4 {[%emt 0:00:18]} Ra2 {[%emt 0:00:42]} 40. Bxc6 {[%emt 0:00:44]} Bd2 {[%emt 0:00:12]} 41. Rc5 {[%emt 0:00:49]} Ra3+ {[%emt 0:00:29]} 42. Kh4 {[%emt 0:00:17]} Bxf4 {[%emt 0:00:07]} 43. g5 {[%emt 0:00:13]} Bf5 {[%emt 0:00:11]} 0-1

[Event "HUN-ch Rapid 2018"]
[Site "Ajka"]
[Date "2018.07.22"]
[Round "11"]
[White "Galyas, Miklos"]
[Black "Horvath, Peter"]
[Result "1-0"]
[ECO "A13"]
[WhiteElo "2382"]
[BlackElo "2438"]
[Annotator "NA"]
[PlyCount "39"]
[EventDate "2018.07.20"]
[EventType "swiss"]
[EventCountry "HUN"]
[SourceTitle "playchess.com"]
[Source "ChessBase"]
[SourceQuality "1"]
[TimeControl "1200+5"]

1. Nf3 {[%emt 0:00:02]} d5 {[%emt 0:00:16]} 2. c4 {[%emt 0:00:02]} e6 {[%emt 0:00:16]} 3. g3 {[%emt 0:00:01]} Nf6 {[%emt 0:00:16]} 4. Bg2 {[%emt 0:00:02]} d4 {[%emt 0:00:10]} 5. O-O {[%emt 0:00:04]} c5 {[%emt 0:00:06]} 6. e3 {[%emt 0:00:03]} Nc6 {[%emt 0:00:05]} 7. exd4 {[%emt 0:00:02]} cxd4 {[%emt 0:00:02]} 8. d3 {[%emt 0:00:02]} Be7 {[%emt 0:00:23]} 9. Re1 {[%emt 0:00:44]} O-O {[%emt 0:00:18]} 10. Na3 {[%emt 0:00:27]} Nd7 {[%emt 0:02:29]} 11. Nc2 {[%emt 0:00:04]} e5 {[%emt 0:00:03]} 12. Bd2 {[%emt 0:02:20]} a5 {[%emt 0:00:05]} 13. a3 {[%emt 0:00:12]} a4 {[%emt 0:00:57]} 14. Nb4 {[%emt 0:00:14]} f6 {[%emt 0:00:08]} 15. Nh4 {[%emt 0:00:24]} Ndb8 {[%emt 0:02:06]} 16. Bd5+ {[%emt 0:00:48]} Kh8 {[%emt 0:00:02]} 17. f4 {[%emt 0:02:57]} Bd6 {[%emt 0:01:29]} 18. f5 {[%emt 0:01:12]} Qe8 {[%emt 0:01:23]} 19. Ng6+ {[%emt 0:01:07]} hxg6 {[%emt 0:00:10]} 20. Qg4 {[%emt 0:00:01]} 1-0

[Event "HUN-ch Rapid 2018"]
[Site "Ajka"]
[Date "2018.07.22"]
[Round "11"]
[White "Dankhazi, Andras"]
[Black "Geher, Koppany"]
[Result "1-0"]
[ECO "D71"]
[WhiteElo "2361"]
[BlackElo "2207"]
[Annotator "NA"]
[PlyCount "29"]
[EventDate "2018.07.20"]
[EventType "swiss"]
[EventCountry "HUN"]
[SourceTitle "playchess.com"]
[Source "ChessBase"]
[SourceQuality "1"]
[TimeControl "1200+5"]

1. d4 {[%emt 0:00:02]} Nf6 {[%emt 0:04:04]} 2. c4 {[%emt 0:00:02]} g6 {[%emt 0:00:01]} 3. g3 {[%emt 0:00:02]} c6 {[%emt 0:00:16]} 4. Bg2 {[%emt 0:00:01]} d5 {[%emt 0:00:01]} 5. Qa4 {[%emt 0:00:01]} Nbd7 {[%emt 0:01:22]} 6. cxd5 {[%emt 0:00:10]} cxd5 {[%emt 0:00:02]} 7. Nc3 {[%emt 0:00:07]} Bg7 {[%emt 0:00:09]} 8. e3 {[%emt 0:03:24]} O-O {[%emt 0:00:06]} 9. Nge2 {[%emt 0:00:01]} e6 {[%emt 0:01:17]} 10. O-O {[%emt 0:00:07]} a6 {[%emt 0:00:52]} 11. Nf4 {[%emt 0:00:33]} b5 {[%emt 0:01:13]} 12. Qd1 {[%emt 0:00:26]} Bb7 {[%emt 0:00:51]} 13. Nd3 {[%emt 0:00:48]} Qe7 {[%emt 0:01:26]} 14. Qb3 {[%emt 0:00:51]} Ne4 {[%emt 0:04:37]} 15. a4 {[%emt 0:01:39]} 1-0

[Event "HUN-ch Rapid 2018"]
[Site "Ajka"]
[Date "2018.07.22"]
[Round "11"]
[White "Csonka, Attila Istvan"]
[Black "Jakab, Attila"]
[Result "0-1"]
[ECO "C10"]
[WhiteElo "2337"]
[BlackElo "2363"]
[Annotator "NA"]
[PlyCount "53"]
[EventDate "2018.07.20"]
[EventType "swiss"]
[EventCountry "HUN"]
[SourceTitle "playchess.com"]
[Source "ChessBase"]
[SourceQuality "1"]
[TimeControl "1200+5"]

1. e4 {[%emt 0:00:05]} e6 {[%emt 0:08:02]} 2. d4 {[%emt 0:00:04]} d5 {[%emt 0:00:01]} 3. Nd2 {[%emt 0:00:05]} dxe4 {[%emt 0:00:06]} 4. Nxe4 {[%emt 0:00:02]} Nd7 {[%emt 0:00:01]} 5. Nf3 {[%emt 0:00:22]} Ngf6 {[%emt 0:00:01]} 6. Bg5 {[%emt 0:00:04]} Be7 {[%emt 0:00:01]} 7. Bxf6 {[%emt 0:00:06]} Nxf6 {[%emt 0:00:01]} 8. Bd3 {[%emt 0:00:04]} O-O {[%emt 0:00:02]} 9. Qe2 {[%emt 0:00:13]} Nd5 {[%emt 0:00:23]} 10. O-O-O {[%emt 0:01:02]} Nf4 {[%emt 0:00:05]} 11. Qd2 {[%emt 0:00:19]} Nxd3+ {[%emt 0:00:54]} 12. Qxd3 {[%emt 0:00:02]} b6 {[%emt 0:00:03]} 13. h4 {[%emt 0:00:10]} h6 {[%emt 0:00:18]} 14. Kb1 {[%emt 0:01:55]} Bb7 {[%emt 0:00:01]} 15. c4 {[%emt 0:00:20]} f5 {[%emt 0:03:22]} 16. Nc3 {[%emt 0:00:16]} Bf6 {[%emt 0:00:43]} 17. Rhe1 {[%emt 0:00:52]} Bxh4 {[%emt 0:01:13]} 18. Rxe6 {[%emt 0:00:13]} Bxf2 {[%emt 0:00:16]} 19. d5 {[%emt 0:00:22]} Bc5 {[%emt 0:00:21]} 20. Nb5 {[%emt 0:00:40]} Bc8 {[%emt 0:00:16]} 21. Re2 f4 {[%emt 0:00:07]} 22. Nbd4 {[%emt 0:00:09]} Bxd4 {[%emt 0:00:07]} 23. Qxd4 {[%emt 0:00:09]} Qf6 {[%emt 0:00:18]} 24. Qxf6 {[%emt 0:00:10]} Rxf6 {[%emt 0:00:01]} 25. Re7 {[%emt 0:00:01]} Rf7 {[%emt 0:00:09]} 26. Rde1 {[%emt 0:00:06]} Bf5+ {[%emt 0:00:13]} 27. Kc1 {[%emt 0:00:01]} 0-1

[Event "HUN-ch Rapid 2018"]
[Site "Ajka"]
[Date "2018.07.22"]
[Round "11"]
[White "Szelenyi, Norbert"]
[Black "Bagi, Mate"]
[Result "0-1"]
[ECO "A01"]
[WhiteElo "2284"]
[BlackElo "2394"]
[Annotator "NA"]
[PlyCount "36"]
[EventDate "2018.07.20"]
[EventType "swiss"]
[EventCountry "HUN"]
[SourceTitle "playchess.com"]
[Source "ChessBase"]
[SourceQuality "1"]
[TimeControl "1200+5"]

1. b3 {[%emt 0:00:06]} e5 {[%emt 0:00:16]} 2. Bb2 {[%emt 0:00:02]} Nc6 {[%emt 0:00:06]} 3. e3 {[%emt 0:00:02]} Nf6 {[%emt 0:00:21]} 4. Bb5 {[%emt 0:00:18]} Bd6 {[%emt 0:00:29]} 5. Ne2 {[%emt 0:00:58]} a6 {[%emt 0:00:23]} 6. Bxc6 {[%emt 0:00:04]} dxc6 {[%emt 0:00:02]} 7. d4 {[%emt 0:00:23]} e4 {[%emt 0:00:18]} 8. c4 {[%emt 0:00:44]} O-O {[%emt 0:00:38]} 9. Ba3 {[%emt 0:00:23]} Re8 {[%emt 0:01:47]} 10. Bxd6 {[%emt 0:00:07]} cxd6 {[%emt 0:00:06]} 11. Nbc3 {[%emt 0:00:20]} Qa5 {[%emt 0:00:49]} 12. Qd2 {[%emt 0:02:02]} Qg5 {[%emt 0:00:37]} 13. Nf4 {[%emt 0:00:11]} b5 {[%emt 0:00:27]} 14. Qe2 {[%emt 0:04:32]} Rb8 {[%emt 0:01:46]} 15. Rc1 {[%emt 0:00:14]} Bg4 {[%emt 0:01:44]} 16. Qc2 {[%emt 0:00:41]} bxc4 {[%emt 0:00:27]} 17. bxc4 {[%emt 0:00:02]} Rb4 {[%emt 0:00:20]} 18. h3 {[%emt 0:01:28]} Bc8 {[%emt 0:00:59]} 0-1

[Event "HUN-ch Rapid 2018"]
[Site "Ajka"]
[Date "2018.07.22"]
[Round "11"]
[White "Laszlo, Janos"]
[Black "Kiss, Pal"]
[Result "1/2-1/2"]
[ECO "D47"]
[WhiteElo "2273"]
[BlackElo "2356"]
[Annotator "NA"]
[PlyCount "33"]
[EventDate "2018.07.20"]
[EventType "swiss"]
[EventCountry "HUN"]
[SourceTitle "playchess.com"]
[Source "ChessBase"]
[SourceQuality "1"]
[TimeControl "1200+5"]

1. c4 {[%emt 0:00:03]} e6 {[%emt 0:00:50]} 2. d4 {[%emt 0:00:22]} d5 {[%emt 0:00:04]} 3. Nc3 {[%emt 0:00:11]} c6 {[%emt 0:00:24]} 4. e3 {[%emt 0:00:21]} Nf6 {[%emt 0:00:04]} 5. Nf3 {[%emt 0:00:02]} Nbd7 {[%emt 0:00:09]} 6. Bd3 {[%emt 0:00:04]} dxc4 {[%emt 0:00:12]} 7. Bxc4 {[%emt 0:00:02]} b5 {[%emt 0:00:26]} 8. Bb3 {[%emt 0:00:03]} b4 {[%emt 0:00:49]} 9. Ne2 {[%emt 0:00:04]} Bd6 {[%emt 0:00:08]} 10. O-O {[%emt 0:00:14]} O-O {[%emt 0:00:07]} 11. Re1 {[%emt 0:01:05]} Bb7 {[%emt 0:00:28]} 12. Ng3 {[%emt 0:02:23]} c5 {[%emt 0:00:49]} 13. Bd2 {[%emt 0:00:37]} a5 {[%emt 0:02:11]} 14. Rc1 {[%emt 0:01:05]} Qb6 {[%emt 0:00:24]} 15. dxc5 {[%emt 0:04:32]} Nxc5 {[%emt 0:00:19]} 16. Bc4 {[%emt 0:00:30]} Rfd8 {[%emt 0:01:10]} 17. Qe2 {[%emt 0:01:27]} 1/2-1/2

[Event "HUN-ch Rapid 2018"]
[Site "Ajka"]
[Date "2018.07.22"]
[Round "11"]
[White "Teglas, Balazs"]
[Black "Hajnal, Zoltan"]
[Result "1-0"]
[ECO "C28"]
[WhiteElo "2201"]
[BlackElo "2357"]
[Annotator "NA"]
[PlyCount "52"]
[EventDate "2018.07.20"]
[EventType "swiss"]
[EventCountry "HUN"]
[SourceTitle "playchess.com"]
[Source "ChessBase"]
[SourceQuality "1"]
[TimeControl "1200+5"]

1. e4 {[%emt 0:01:36]} e5 {[%emt 0:00:08]} 2. Nc3 {[%emt 0:00:02]} Nc6 {[%emt 0:00:05]} 3. Bc4 {[%emt 0:00:02]} Nf6 {[%emt 0:00:11]} 4. d3 {[%emt 0:00:01]} Na5 {[%emt 0:00:07]} 5. Bb3 {[%emt 0:00:24]} Bb4 {[%emt 0:00:19]} 6. Nge2 {[%emt 0:00:17]} Nxb3 {[%emt 0:00:22]} 7. axb3 {[%emt 0:00:01]} d5 {[%emt 0:00:01]} 8. exd5 {[%emt 0:00:02]} Nxd5 {[%emt 0:00:02]} 9. O-O {[%emt 0:00:04]} O-O {[%emt 0:00:07]} 10. Bd2 {[%emt 0:00:18]} Be7 {[%emt 0:01:26]} 11. Nxd5 {[%emt 0:00:14]} Qxd5 {[%emt 0:00:01]} 12. Nc3 {[%emt 0:00:03]} Qc6 {[%emt 0:00:27]} 13. Qe2 {[%emt 0:00:15]} f6 {[%emt 0:00:28]} 14. Qe4 {[%emt 0:00:18]} Qxe4 {[%emt 0:00:13]} 15. dxe4 {[%emt 0:00:01]} c6 {[%emt 0:00:02]} 16. Be3 {[%emt 0:00:03]} a6 {[%emt 0:00:07]} 17. Rfd1 {[%emt 0:00:17]} Be6 {[%emt 0:00:02]} 18. Bb6 {[%emt 0:00:04]} Rac8 {[%emt 0:00:12]} 19. Rd2 {[%emt 0:01:33]} Kf7 {[%emt 0:00:19]} 20. Be3 {[%emt 0:01:57]} g6 {[%emt 0:00:25]} 21. Rad1 {[%emt 0:00:11]} f5 {[%emt 0:02:55]} 22. f3 {[%emt 0:00:53]} f4 {[%emt 0:00:46]} 23. Bb6 {[%emt 0:01:30]} g5 {[%emt 0:00:06]} 24. Kf2 {[%emt 0:00:44]} h5 {[%emt 0:00:30]} 25. Na4 {[%emt 0:03:50]} c5 {[%emt 0:00:08]} 26. c4 {[%emt 0:00:07]} g4 {[%emt 0:00:09]} 1-0

[Event "HUN-ch Rapid 2018"]
[Site "Ajka"]
[Date "2018.07.22"]
[Round "11"]
[White "Varga, Klara"]
[Black "Hoang, Thanh Trang"]
[Result "1-0"]
[ECO "A10"]
[WhiteElo "2183"]
[BlackElo "2351"]
[Annotator "NA"]
[PlyCount "38"]
[EventDate "2018.07.20"]
[EventType "swiss"]
[EventCountry "HUN"]
[SourceTitle "playchess.com"]
[Source "ChessBase"]
[SourceQuality "1"]
[TimeControl "1200+5"]

1. c4 {[%emt 0:00:02]} f5 {[%emt 0:00:12]} 2. Nc3 {[%emt 0:00:06]} Nf6 {[%emt 0:00:04]} 3. g3 {[%emt 0:00:06]} g6 {[%emt 0:00:07]} 4. Bg2 {[%emt 0:00:01]} Bg7 {[%emt 0:00:04]} 5. d3 {[%emt 0:00:02]} d6 {[%emt 0:00:29]} 6. e4 {[%emt 0:00:03]} Nc6 {[%emt 0:00:13]} 7. Nge2 {[%emt 0:00:02]} e5 {[%emt 0:00:07]} 8. O-O {[%emt 0:00:05]} O-O {[%emt 0:00:07]} 9. Nd5 {[%emt 0:00:03]} Be6 {[%emt 0:00:32]} 10. Be3 {[%emt 0:00:14]} Qd7 {[%emt 0:00:24]} 11. Qd2 {[%emt 0:02:35]} Ng4 {[%emt 0:02:06]} 12. Rae1 {[%emt 0:01:57]} fxe4 {[%emt 0:01:02]} 13. dxe4 {[%emt 0:00:21]} Nxe3 {[%emt 0:00:21]} 14. Qxe3 {[%emt 0:00:10]} Nd4 {[%emt 0:00:19]} 15. Nxd4 {[%emt 0:02:40]} exd4 {[%emt 0:00:11]} 16. Qd3 {[%emt 0:00:05]} Rae8 {[%emt 0:01:36]} 17. f4 {[%emt 0:01:39]} c6 {[%emt 0:01:47]} 18. Nb4 {[%emt 0:00:05]} Bg4 {[%emt 0:01:07]} 19. Kh1 {[%emt 0:02:44]} Rf7 {[%emt 0:00:48]} 1-0

[Event "HUN-ch Rapid 2018"]
[Site "Ajka"]
[Date "2018.07.22"]
[Round "11"]
[White "Gaal, Zsoka"]
[Black "Deak, Sandor"]
[Result "0-1"]
[ECO "A05"]
[WhiteElo "2044"]
[BlackElo "2335"]
[Annotator "NA"]
[PlyCount "30"]
[EventDate "2018.07.20"]
[EventType "swiss"]
[EventCountry "HUN"]
[SourceTitle "playchess.com"]
[Source "ChessBase"]
[SourceQuality "1"]
[TimeControl "1200+5"]

1. Nf3 {[%emt 0:00:03]} Nf6 {[%emt 0:00:19]} 2. g3 {[%emt 0:00:03]} g6 {[%emt 0:00:32]} 3. Bg2 {[%emt 0:00:01]} Bg7 {[%emt 0:00:02]} 4. d4 {[%emt 0:00:13]} O-O {[%emt 0:00:03]} 5. O-O {[%emt 0:00:02]} d6 {[%emt 0:00:40]} 6. b3 {[%emt 0:00:04]} e5 {[%emt 0:00:56]} 7. dxe5 {[%emt 0:00:11]} dxe5 {[%emt 0:00:04]} 8. Qxd8 {[%emt 0:00:57]} Rxd8 {[%emt 0:00:02]} 9. Bb2 {[%emt 0:00:03]} e4 {[%emt 0:00:22]} 10. Ng5 {[%emt 0:01:38]} Bf5 {[%emt 0:00:08]} 11. Nc3 {[%emt 0:01:30]} h6 {[%emt 0:03:11]} 12. Nh3 {[%emt 0:00:04]} Nc6 {[%emt 0:02:05]} 13. Rfd1 {[%emt 0:01:37]} e3 {[%emt 0:03:15]} 14. fxe3 {[%emt 0:06:14]} Bxc2 {[%emt 0:00:12]} 15. Rxd8+ {[%emt 0:00:04]} Rxd8 {[%emt 0:00:01]} 0-1

[Event "HUN-ch Rapid 2018"]
[Site "Ajka"]
[Date "2018.07.22"]
[Round "13"]
[White "Banusz, Tamas"]
[Black "Bagi, Mate"]
[Result "1-0"]
[ECO "A04"]
[WhiteElo "2592"]
[BlackElo "2394"]
[Annotator "ChessBase"]
[PlyCount "99"]
[EventDate "2018.07.20"]
[EventType "swiss"]
[EventCountry "HUN"]
[SourceTitle "playchess.com"]
[Source "ChessBase"]
[SourceQuality "1"]
[TimeControl "1200+5"]

1. Nf3 {[%emt 0:00:02]} c5 {[%emt 0:00:16]} 2. c4 {[%emt 0:00:05]} Nc6 {[%emt 0:00:02]} 3. d4 {[%emt 0:00:04]} cxd4 {[%emt 0:00:05]} 4. Nxd4 {[%emt 0:00:01]} e5 {[%emt 0:00:27]} 5. Nb5 {[%emt 0:00:10]} d6 {[%emt 0:00:03]} 6. N1c3 {[%emt 0:00:06]} a6 {[%emt 0:00:07]} 7. Na3 {[%emt 0:00:01]} Nf6 {[%emt 0:00:53]} 8. g3 {[%emt 0:00:08]} Be7 {[%emt 0:00:33]} 9. Bg2 {[%emt 0:00:02]} O-O {[%emt 0:00:03]} 10. O-O {[%emt 0:00:04]} Bg4 {[%emt 0:00:22]} 11. Nc2 {[%emt 0:00:24]} Qd7 {[%emt 0:00:33]} 12. Ne3 {[%emt 0:00:17]} Bh3 {[%emt 0:00:09]} 13. Ned5 {[%emt 0:00:04]} Bxg2 {[%emt 0:00:22]} 14. Kxg2 {[%emt 0:00:02]} Nxd5 {[%emt 0:00:35]} 15. Nxd5 {[%emt 0:00:04]} Rae8 {[%emt 0:00:33]} 16. b3 {[%emt 0:00:47]} f5 {[%emt 0:00:41]} 17. Ba3 {[%emt 0:01:12]} Rd8 {[%emt 0:00:20]} 18. e3 {[%emt 0:00:20]} Qe6 {[%emt 0:00:45]} 19. Qd2 {[%emt 0:00:32]} Rf7 {[%emt 0:01:28]} 20. Rad1 {[%emt 0:01:31]} Bf8 {[%emt 0:00:54]} 21. f3 {[%emt 0:00:13]} h5 {[%emt 0:00:46]} 22. h4 {[%emt 0:00:37]} g6 {[%emt 0:00:07]} 23. Bb2 {[%emt 0:00:31]} Bh6 {[%emt 0:00:40]} 24. f4 {[%emt 0:00:13]} Bg7 {[%emt 0:00:12]} 25. a4 {[%emt 0:00:08]} Rfd7 {[%emt 0:02:08]} 26. Rfe1 {[%emt 0:00:24]} Ne7 {[%emt 0:00:11]} 27. Bc3 {[%emt 0:00:52]} Nxd5 {[%emt 0:00:33]} 28. Qxd5 {[%emt 0:00:02]} Qxd5+ {[%emt 0:00:32]} 29. Rxd5 {[%emt 0:00:01]} Kf7 {[%emt 0:00:13]} 30. e4 {[%emt 0:00:31]} fxe4 {[%emt 0:00:51]} 31. Rxe4 {[%emt 0:00:03]} exf4 {[%emt 0:00:07]} 32. Rxf4+ {[%emt 0:00:13]} Kg8 {[%emt 0:00:01]} 33. Bxg7 {[%emt 0:00:55]} Kxg7 {[%emt 0:00:02]} 34. Rfd4 {[%emt 0:00:11]} Kf6 {[%emt 0:00:52]} 35. Kf3 {[%emt 0:00:05]} b6 {[%emt 0:01:30]} 36. g4 {[%emt 0:00:21]} hxg4+ {[%emt 0:00:10]} 37. Kxg4 {[%emt 0:00:01]} Kf7 {[%emt 0:01:15]} 38. Kg5 {[%emt 0:00:22]} Kg7 {[%emt 0:00:09]} 39. b4 {[%emt 0:00:33]} Re7 {[%emt 0:02:26]} 40. Rxd6 {[%emt 0:00:18]} Re5+ {[%emt 0:00:01]} 41. Kf4 {[%emt 0:01:11]} Rf5+ {[%emt 0:00:02]} 42. Ke3 {[%emt 0:00:19]} Re5+ {[%emt 0:00:35]} 43. Kd3 {[%emt 0:00:12]} Rf8 {[%emt 0:00:02]} 44. Rg4 {[%emt 0:00:24]} Rf6 {[%emt 0:00:12]} 45. Rxf6 {[%emt 0:00:11]} Kxf6 {[%emt 0:00:01]} 46. Rf4+ {[%emt 0:00:03]} Kg7 {[%emt 0:00:11]} 47. Kd4 {[%emt 0:00:02]} Re1 {[%emt 0:00:17]} 48. c5 {[%emt 0:00:10]} Rb1 {[%emt 0:00:21]} 49. Kd5 {[%emt 0:00:09]} a5 {[%emt 0:00:19]} 50. cxb6 1-0